bitfinex/quotes_ETHUSD_20250904
["timestamp","ask_amount","ask_price","bid_price","bid_amount"]
[1756998882275,4.729,4318.6,4318.5,2.31561884]
[1756998882482,4.729,4318.6,4318.4,2.31565963]
[1756998882683,4.729,4318.6,4318.5,0.13849751]
[1756998882885,4.729,4318.6,4318.5,2.45411635]
[1756998883080,4.729,4318.6,4318.5,0.13849336]
[1756998883509,4.729,4318.6,4318.5,2.4541122]
[1756998883510,4.613,4318.6,4318.5,2.4541122]
[1756998884818,5.3811,4318.6,4318.5,0.13849336]
[1756998884984,8.13376522,4318.6,4318.5,0.13849336]
[1756998885184,2.31572239,4318.4,4317.3,2.31625311]
[1756998885428,8.13381855,4318.6,4317.2,0.116]
[1756998885429,0.116,4317.8,4317.2,0.116]
[1756998885716,4.594,4317.9,4317.8,2.31599425]
[1756998885923,4.594,4317.9,4317.5,0.116]
[1756998886133,4.594,4317.9,4317.8,2.31599425]
[1756998886303,4.594,4317.9,4317.8,3.07879425]
[1756998886507,4.594,4317.9,4317.8,3.19479425]
[1756998888294,1.706,4318.3,4317.8,3.19479425]
[1756998888295,1.706,4318.3,4318.2,2.31577972]
[1756998888536,0.116,4318.7,4318.6,2.31556522]
[1756998888702,4.694,4318.7,4318.6,2.31556522]
[1756998889131,4.694,4318.7,4318.2,2.31577345]
[1756998889428,4.692,4318.7,4318.1,0.116]
[1756998890024,4.692,4318.7,4318.6,2.31556522]
[1756998890796,4.692,4318.7,4318.1,0.116]
[1756998890998,4.692,4318.7,4318.2,2.31577972]
[1756998891244,4.692,4318.7,4318.6,2.31556522]
[1756998891410,4.692,4318.7,4318.4,2.31567247]
[1756998891621,4.692,4318.7,4318.1,2.43178329]
[1756998891622,4.692,4318.7,4318.1,0.116]
[1756998891819,4.692,4318.7,4318.6,2.31556522]
[1756998892308,4.576,4318.7,4318.6,2.31556522]
[1756998894127,5.0431,4318.7,4318.5,0.116]
[1756998894305,0.025,4318.8,4318.7,2.31551161]
[1756998896214,0.025,4318.8,4318.7,2.60761161]
[1756998896421,0.025,4318.8,4318.7,3.07831161]
[1756998897646,4.50490859,4319.3,4319.2,2.31524356]
[1756998897943,4.50190552,4319.3,4319.2,2.31524356]
[1756998900356,0.001,4319.7,4319.6,2.31502916]
[1756998900639,0.758,4319.7,4319.3,2.31518996]
[1756998900809,0.9067,4319.6,4318.4,4.512]
[1756998901004,0.57,4319.5,4318.9,0.116]
[1756998901205,0.303,4319.0,4318.7,2.31549468]
[1756998901401,5.4167,4318.9,4318.1,0.116]
[1756998901838,5.4167,4318.9,4318.1,2.43180269]
[1756998902179,5.4167,4318.9,4318.4,2.31561938]
[1756998902314,4.9627,4318.9,4318.5,2.31559925]
[1756998902521,4.9627,4318.9,4318.2,2.31577972]
[1756998902522,0.454,4318.8,4318.1,0.116]
[1756998902701,0.303,4318.6,4318.3,2.31571599]
[1756998902904,2.31530767,4319.1,4318.3,2.31571599]
[1756998902905,0.116,4318.7,4318.6,2.31556522]
[1756998903239,0.873,4318.7,4318.1,0.116]
[1756998903403,0.116,4318.7,4318.1,0.116]
[1756998903607,0.1152,4318.7,4318.5,2.3155807]
[1756998903845,0.1152,4318.7,4318.2,2.31577972]
[1756998903846,0.303,4318.6,4318.2,2.31577972]
[1756998904006,0.454,4318.5,4318.3,2.31572434]
[1756998904207,0.454,4318.5,4318.2,2.31577972]
[1756998904411,0.454,4318.4,4318.1,2.43182315]
[1756998904623,0.1152,4318.7,4318.5,2.31558212]
[1756998904832,0.1152,4318.7,4318.6,2.31556522]
[1756998905032,0.8722,4318.7,4318.1,0.116]
[1756998905232,1.3249,4318.7,4318.1,0.116]
[1756998905433,2.31587359,4318.1,4317.8,0.05]
[1756998905634,4.49,4318.0,4317.8,0.05]
[1756998905945,0.873,4317.9,4317.8,0.025]
[1756998906140,1.35464925,4317.9,4317.8,0.025]
[1756998906512,1.3257,4317.9,4317.8,2.34099425]
[1756998906720,0.116,4317.9,4317.8,2.34099425]
[1756998906923,0.001,4319.7,4317.9,2.31594061]
[1756998906924,4.486,4318.6,4317.9,2.31594061]
[1756998907238,0.116,4318.5,4318.4,2.31567247]
[1756998907541,4.486,4318.6,4318.5,2.31561884]
[1756998907945,0.116,4318.7,4318.6,2.31556522]
[1756998908239,4.486,4318.7,4318.6,2.60406522]
[1756998908645,0.57,4319.4,4318.7,2.31551161]
[1756998908812,4.481,4319.3,4319.2,2.31524356]
[1756998909233,0.025,4319.8,4319.2,0.2885]
[1756998909420,4.477,4319.7,4319.6,2.31502916]
[1756998910610,4.477,4319.7,4319.6,2.60352916]
[1756998910813,4.477,4319.7,4319.6,2.71952916]
[1756998911238,4.477,4319.7,4319.6,0.116]
[1756998911441,5.6867,4319.7,4319.6,0.116]
[1756998911639,5.234,4319.7,4319.3,2.43118935]
[1756998911839,4.931,4319.7,4319.6,2.31502916]
[1756998912141,4.477,4319.7,4319.6,2.31502916]
[1756998913127,4.477,4319.7,4319.3,0.116]
[1756998913538,4.477,4319.7,4319.4,2.31513636]
[1756998914065,0.303,4319.5,4319.1,2.31928839]
[1756998914229,0.757,4319.5,4319.1,0.004]
[1756998914428,4.477,4319.7,4319.4,2.60361092]
[1756998914634,4.477,4319.7,4319.5,2.3150348]
[1756998914829,4.477,4319.7,4319.1,2.31924389]
[1756998915162,4.477,4319.7,4319.4,2.3151206]
[1756998915541,4.477,4319.7,4319.1,0.004]
[1756998915868,4.477,4319.7,4319.5,2.31507505]
[1756998916190,4.477,4319.7,4319.1,0.004]
[1756998916334,4.477,4319.7,4319.6,2.31502916]
[1756998917362,4.477,4319.7,4319.6,2.60352916]
[1756998917534,4.477,4319.7,4319.6,2.31502916]
[1756998917736,4.477,4319.7,4319.5,2.31508276]
[1756998917936,4.477,4319.7,4319.5,2.31504058]
[1756998918131,4.477,4319.7,4319.1,0.004]
[1756998918132,0.303,4319.6,4319.1,0.004]
[1756998918362,1.23863786,4319.6,4319.1,0.004]
[1756998918569,0.454,4319.5,4319.1,2.31929402]
[1756998918765,0.454,4319.5,4319.1,0.004]
[1756998918766,4.439,4319.4,4319.1,0.004]
[1756998918967,2.61824356,4319.2,4319.1,0.004]
[1756998919467,3.5538841,4319.2,4319.1,0.004]
[1756998919865,3.52494356,4319.2,4319.1,0.004]
[1756998920568,3.5538841,4319.2,4319.1,0.004]
[1756998920771,8.8858841,4319.2,4319.1,0.004]
[1756998921073,8.85694356,4319.2,4319.1,0.004]
[1756998921387,6.089,4319.2,4319.1,0.004]
[1756998921551,13.28894356,4319.2,4319.1,0.004]
[1756998922539,10.9737,4319.2,4319.1,0.004]
[1756998922737,10.521,4319.2,4319.1,0.004]
[1756998924163,12.95224356,4319.2,4319.1,0.004]
[1756998924680,13.40494356,4319.2,4319.1,0.004]
[1756998925764,11.0897,4319.2,4319.1,0.004]
[1756998925966,10.637,4319.2,4319.1,0.004]
[1756998926482,5.332,4319.2,4319.1,2.31929716]
[1756998926646,4.525,4319.2,4319.1,2.31929716]
[1756998926846,4.525,4319.2,4319.1,2.60779716]
[1756998927050,4.525,4319.2,4319.1,0.004]
[1756998927652,5.7347,4319.2,4319.1,0.004]
[1756998928391,8.04994356,4319.2,4319.1,0.004]
[1756998929281,4.5242,4319.2,4319.1,0.004]
[1756998929780,4.525,4319.2,4319.1,2.60779716]
[1756998930355,4.525,4319.2,4319.1,3.05189716]
[1756998930683,4.409,4319.2,4319.1,3.05189716]
[1756998931188,0.001,4319.7,4319.6,2.31502916]
[1756998931680,0.001,4319.7,4319.6,3.44662916]
[1756998932083,1e-08,4319.8,4319.7,6.10697557]
[1756998932283,1e-08,4319.8,4319.7,6.80617557]
[1756998932492,1e-08,4319.8,4319.7,7.12257557]
[1756998932867,1e-08,4319.8,4319.7,7.23857557]
[1756998933481,1e-08,4319.8,4319.7,6.98347557]
[1756998933983,1e-08,4319.8,4319.7,2.74737557]
[1756998934157,1e-08,4319.8,4319.7,3.19147557]
[1756998935300,1e-08,4319.8,4319.7,3.44657557]
[1756998935594,1e-08,4319.8,4319.7,2.74737557]
[1756998935779,1e-08,4319.8,4319.7,2.43097557]
[1756998936156,1e-08,4319.8,4319.7,5.63137557]
[1756998936782,1e-08,4319.8,4319.1,0.004]
[1756998936982,0.4972,4319.7,4319.5,2.31505734]
[1756998937283,1.2303,4319.6,4319.1,0.004]
[1756998937484,1e-08,4319.8,4319.1,0.004]
[1756998938061,1e-08,4319.8,4319.5,2.31504211]
[1756998938259,1e-08,4319.8,4319.6,2.31500298]
[1756998938559,1e-08,4319.8,4319.7,2.63137557]
[1756998938957,1e-08,4319.8,4319.7,3.07547557]
[1756998939156,1e-08,4319.8,4319.7,4.12257557]
[1756998939357,1e-08,4319.8,4319.7,7.12257557]
[1756998940001,1e-08,4319.8,4319.7,6.86747557]
[1756998940687,1e-08,4319.8,4319.7,7.12257557]
[1756998941360,1e-08,4319.8,4319.7,7.21532758]
[1756998941574,1e-08,4319.8,4319.7,11.58432758]
[1756998941966,1e-08,4320.6,4320.5,3.10654692]
[1756998942305,1e-08,4320.6,4320.5,10.47154692]
[1756998942498,1e-08,4320.6,4320.5,11.48714692]
[1756998942793,0.001,4321.9,4321.7,2.31390425]
[1756998943599,0.3282,4321.8,4321.1,0.792]
[1756998943765,0.8254,4321.8,4320.9,3.792]
[1756998943969,0.5222,4321.8,4321.7,2.31390425]
[1756998944169,0.025,4321.8,4321.7,2.31390425]
[1756998944862,0.025,4321.8,4321.7,2.63030425]
[1756998946098,0.025,4321.8,4321.7,6.42230425]
[1756998946287,0.025,4321.8,4321.7,6.98240425]
[1756998946662,1e-08,4321.8,4321.7,6.98240425]
[1756998948100,1e-08,4321.8,4321.7,7.23750425]
[1756998950195,1e-08,4321.8,4321.7,19.08231626]
[1756998950395,1e-08,4321.8,4321.7,20.78731626]
[1756998951173,1e-08,4321.8,4321.7,8.94250425]
[1756998951373,1e-08,4321.8,4321.7,25.15031626]
[1756998953397,1e-08,4321.8,4321.7,25.14931626]
[1756998953604,0.00100001,4321.8,4321.7,25.14931626]
[1756998953807,0.49720001,4323.8,4323.6,0.792]
[1756998953972,0.49720001,4323.8,4323.7,7.46683391]
[1756998954177,0.80040001,4323.8,4323.7,7.58283391]
[1756998954406,1e-08,4323.8,4323.7,7.58283391]
[1756998954587,0.00020001,4324.2,4324.1,2.31261996]
[1756998954781,0.00020001,4324.2,4324.1,2.42861996]
[1756998954990,0.30340001,4324.2,4324.1,2.42861996]
[1756998955194,0.00020001,4324.2,4324.1,2.42861996]
[1756998956001,0.00020001,4324.2,4324.1,6.78961996]
[1756998956178,0.00020001,4324.2,4324.1,7.58161996]
[1756998956383,0.00020001,4324.2,4324.1,10.58161996]
[1756998956975,0.4972,4325.2,4324.2,2.31256648]
[1756998957180,0.3032,4324.3,4324.2,2.31256648]
[1756998957401,1.2303,4324.3,4324.2,2.31256648]
[1756998957801,1.2303,4324.3,4324.0,2.31263969]
[1756998957987,1.2303,4324.3,4323.1,2.31315246]
[1756998957988,0.9271,4324.2,4323.1,2.31315246]
[1756998958187,0.9271,4324.2,4322.5,0.01231652]
[1756998958510,0.9271,4324.2,4324.1,2.31261996]
[1756998958802,1.2303,4324.2,4324.1,2.31261996]
[1756998959984,1.2303,4324.2,4324.0,2.31265973]
[1756998960181,0.9271,4324.1,4323.8,0.025]
[1756998960707,0.2975,4323.9,4323.8,0.025]
[1756998961207,1.1857,4323.9,4323.8,0.025]
[1756998961704,5.5457,4323.9,4323.8,0.025]
[1756998962079,7.85842693,4323.9,4323.8,0.025]
[1756998962403,5.5457,4323.9,4323.8,0.025]
[1756998962908,5.5457,4323.9,4323.8,0.05]
[1756998962909,7.85842693,4323.9,4323.8,0.05]
[1756998965074,3.49842693,4323.9,4323.8,0.05]
[1756998965277,7.88633601,4323.9,4323.8,0.05]
[1756998965587,7.85742693,4323.9,4323.8,0.05]
[1756998965788,7.85742693,4323.9,4323.8,0.025]
[1756998966809,5.5457,4323.9,4323.8,0.025]
[1756998967294,5.6617,4323.9,4323.8,0.025]
[1756998968102,5.6607,4323.9,4323.8,0.025]
[1756998968408,5.2325,4323.9,4323.8,0.025]
[1756998968632,4.475,4323.9,4323.8,2.33778042]
[1756998968979,4.475,4323.9,4323.8,0.025]
[1756998969202,4.475,4323.9,4323.8,2.33778042]
[1756998969401,5.2325,4323.9,4323.8,0.025]
[1756998969609,5.6607,4323.9,4323.8,0.025]
[1756998970115,4.475,4323.9,4323.8,0.025]
[1756998970311,4.935,4323.9,4323.8,0.025]
[1756998970681,4.935,4323.9,4323.8,2.33778042]
[1756998971313,4.935,4323.9,4323.8,0.025]
[1756998971492,5.2325,4323.9,4323.8,0.029]
[1756998971697,5.6607,4323.9,4323.8,0.029]
[1756998972094,7.97342693,4323.9,4323.8,0.029]
[1756998973220,23.13405063,4323.9,4323.8,0.029]
[1756998973422,22.81823894,4323.9,4323.8,0.029]
[1756998974190,22.81823894,4323.9,4323.8,1e-08]
[1756998975233,10.97342693,4323.9,4323.8,1e-08]
[1756998976593,7.97342693,4323.9,4323.8,1e-08]
[1756998979444,5.327,4324.5,4323.8,0.28920001]
[1756998979594,4.358,4324.4,4323.8,0.74830001]
[1756998979794,2.31272693,4323.9,4323.8,1e-08]
[1756998980019,6.99533601,4323.9,4323.8,1e-08]
[1756998980200,7.85542693,4323.9,4323.8,1e-08]
[1756998982235,10.85542693,4323.9,4323.8,1e-08]
[1756998982433,17.15780641,4323.4,4323.3,1e-08]
[1756998982726,5.3130479,4323.3,4322.8,0.025]
[1756998982929,0.2975,4322.9,4322.8,0.025]
[1756998983144,6.9966777,4322.9,4322.8,0.025]
[1756998983345,7.85596193,4322.9,4322.8,0.025]
[1756998983896,6.67026193,4322.9,4322.8,0.025]
[1756998984604,7.85596193,4322.9,4322.8,0.025]
[1756998985112,5.1145,4322.9,4322.8,0.025]
[1756998985316,6.67026193,4322.9,4322.8,0.025]
[1756998985698,4.357,4322.9,4322.8,0.025]
[1756998985899,4.357,4322.9,4322.8,0.3142]
[1756998986109,4.357,4322.9,4322.8,0.025]
[1756998986317,6.67026193,4322.9,4322.8,0.025]
[1756998986520,7.85596193,4322.9,4322.8,0.025]
[1756998987307,4.357,4322.9,4322.8,0.025]
[1756998988030,4.6545,4322.9,4322.8,0.025]
[1756998988351,8.17177362,4322.9,4322.8,0.025]
[1756998988543,7.85596193,4322.9,4322.8,0.025]
[1756998989397,7.97196193,4322.9,4322.8,0.025]
[1756998989733,6.78626193,4322.9,4322.8,0.025]
[1756998991104,0.116,4322.9,4322.8,0.025]
[1756998991436,4.471,4322.9,4322.8,0.025]
[1756998991944,4.471,4322.9,4322.8,0.3193]
[1756998992345,4.471,4322.9,4322.8,0.7843]
[1756998992512,6.78426193,4322.9,4322.8,0.025]
[1756998992833,7.58756193,4322.9,4322.8,0.025]
[1756998993714,8.04376193,4322.9,4322.8,0.025]
[1756998994423,2.91996193,4322.9,4322.8,0.025]
[1756998994624,7.3028777,4322.9,4322.8,0.025]
[1756998994939,6.78326193,4322.9,4322.8,0.025]
[1756998995431,7.09586193,4322.9,4322.8,0.025]
[1756998995732,7.58656193,4322.9,4322.8,0.025]
[1756998995937,7.27396193,4322.9,4322.8,0.025]
[1756998996116,6.78326193,4322.9,4322.8,0.025]
[1756998996432,7.09586193,4322.9,4322.8,0.025]
[1756998996730,8.04276193,4322.9,4322.8,0.025]
[1756998997031,7.58656193,4322.9,4322.8,0.025]
[1756998997233,7.27396193,4322.9,4322.8,0.025]
[1756998997436,8.04276193,4322.9,4322.8,0.025]
[1756998998434,11.04276193,4322.9,4322.8,0.025]
[1756998999214,9.78226193,4322.9,4322.8,0.025]
[1756998999922,6.78226193,4322.9,4322.8,0.025]
[1756999001814,4.469,4322.9,4322.8,0.3193]
[1756999002006,6.78226193,4322.9,4322.8,0.7843]
[1756999002213,6.78226193,4322.9,4322.8,0.025]
[1756999002642,6.78226193,4322.9,4322.8,0.3193]
[1756999002946,4.469,4322.9,4322.8,0.7843]
[1756999003565,1.705,4323.4,4322.8,1.0394]
[1756999003844,4.351,4323.3,4323.2,2.31307935]
[1756999004052,4.351,4323.3,4323.2,3.3275014]
[1756999005433,4.3502,4323.3,4323.2,3.3275014]
[1756999006220,4.3502,4323.3,4323.2,0.7593]
[1756999006516,4.3502,4323.3,4323.2,3.0724014]
[1756999007121,4.3502,4323.3,4323.2,0.2943]
[1756999007544,4.3512,4323.3,4323.2,0.2943]
[1756999007743,4.3512,4323.3,4322.8,2.45830136]
[1756999007918,4.3512,4323.3,4323.2,0.2943]
[1756999008118,4.3512,4323.3,4323.2,0.7593]
[1756999008349,4.3512,4323.3,4323.2,3.0724014]
[1756999009154,4.3512,4323.3,4323.2,0.7593]
[1756999009452,4.3512,4323.3,4323.2,3.0724014]
[1756999010139,4.3512,4323.3,4323.2,0.7593]
[1756999010716,4.3512,4323.3,4323.2,3.0724014]
[1756999010949,4.3512,4323.3,4323.2,3.3275014]
[1756999011126,0.001,4323.3,4323.2,3.3275014]
[1756999011462,0.001,4323.3,4323.2,7.1195014]
[1756999013435,0.001,4323.3,4323.2,7.2355014]
[1756999014054,0.001,4323.3,4323.2,11.5815014]
[1756999015656,0.001,4323.3,4323.2,7.93059025]
[1756999015861,0.001,4323.3,4323.2,12.27559025]
[1756999016066,0.001,4325.3,4323.7,0.792]
[1756999016226,0.001,4325.3,4323.2,25.45484887]
[1756999016227,0.001,4325.3,4323.8,0.7191]
[1756999016429,0.116,4324.8,4324.2,0.116]
[1756999016648,2.42825174,4324.8,4324.2,0.116]
[1756999017037,0.116,4324.8,4324.2,0.116]
[1756999017234,2.3123604,4324.6,4324.2,0.116]
[1756999017427,0.4907,4324.6,4323.8,0.465]
[1756999017627,0.4907,4324.6,4323.9,0.116]
[1756999017628,0.116,4324.5,4323.9,0.116]
[1756999018056,2.31249253,4324.4,4323.9,0.116]
[1756999018257,0.116,4324.5,4323.9,0.116]
[1756999018563,2.31251415,4324.3,4323.9,0.116]
[1756999018731,2.42842202,4324.5,4323.9,0.116]
[1756999019054,2.31253691,4324.3,4323.9,0.116]
[1756999019255,2.31253691,4324.3,4323.5,2.31293428]
[1756999019456,2.31253691,4324.3,4323.8,0.025]
[1756999019664,2.31246527,4324.4,4323.8,0.025]
[1756999019954,0.116,4324.5,4323.8,0.025]
[1756999020129,2.42841972,4324.5,4323.8,0.025]
[1756999020330,0.116,4324.5,4323.8,0.025]
[1756999020639,0.116,4324.5,4323.8,2.78835335]
[1756999020831,0.116,4324.5,4323.9,2.31272693]
[1756999021034,0.116,4324.5,4324.0,2.31266056]
[1756999021246,0.4788,4324.4,4323.8,0.025]
[1756999021442,0.292,4323.9,4322.8,0.029]
[1756999021629,0.4788,4323.8,4322.8,0.029]
[1756999021832,0.50770975,4323.8,4322.8,0.029]
[1756999022065,0.292,4322.9,4322.8,0.029]
[1756999022248,4.634,4322.9,4322.8,0.029]
[1756999022451,4.342,4322.9,4322.8,0.029]
[1756999022648,1.704,4323.0,4322.8,0.029]
[1756999022851,4.342,4322.9,4322.8,0.029]
[1756999024067,5.1128,4322.9,4322.8,0.029]
[1756999024244,5.549,4322.9,4322.8,0.029]
[1756999024763,4.342,4322.9,4322.8,0.029]
[1756999025334,1.704,4323.0,4322.8,0.029]
[1756999025531,4.341,4323.2,4322.8,0.7788]
[1756999025766,4.341,4323.3,4322.9,0.4506]
[1756999026063,1.704,4323.9,4322.8,0.3282]
[1756999026064,1.704,4323.9,4323.2,0.2992]
[1756999026248,4.341,4323.6,4323.5,2.3129409]
[1756999026443,1.704,4323.9,4323.8,2.31278042]
[1756999027047,1.704,4323.9,4323.8,2.61198042]
[1756999027666,4.341,4324.0,4323.8,2.61198042]
[1756999027667,4.341,4324.0,4323.9,2.31272693]
[1756999027873,0.001,4324.2,4324.0,2.31267345]
[1756999028464,0.001,4324.2,4324.1,2.31261996]
[1756999028957,0.7718,4324.2,4323.2,0.792]
[1756999029266,0.7718,4324.2,4323.8,2.31277384]
[1756999029568,0.001,4324.2,4324.0,2.31262849]
[1756999029966,0.001,4324.2,4323.3,3.0]
[1756999030172,0.001,4324.2,4324.1,2.31261996]
[1756999030768,3.11247365,4324.2,4322.8,0.029]
[1756999030950,3.54867365,4324.2,4323.4,2.31297654]
[1756999031269,3.54867365,4324.2,4322.8,0.029]
[1756999031270,1.2072,4324.2,4322.8,0.029]
[1756999031575,0.116,4323.8,4323.2,2.42906027]
[1756999031870,4.338,4323.7,4323.2,0.116]
[1756999032058,4.8168,4323.7,4323.2,2.42908868]
[1756999032262,4.8168,4323.7,4323.3,2.3130479]
[1756999032447,0.4788,4323.6,4323.2,0.116]
[1756999032964,4.338,4323.7,4323.2,0.116]
[1756999033362,4.8168,4323.7,4323.2,0.116]
[1756999033557,4.8168,4323.7,4323.2,2.42908876]
[1756999033758,4.8168,4323.7,4323.2,0.116]
[1756999033759,5.253,4323.7,4323.2,0.116]
[1756999033964,0.292,4323.3,4322.8,0.029]
[1756999034268,4.453,4323.2,4322.8,0.029]
[1756999034467,4.9318,4323.2,4322.9,2.31321145]
[1756999034640,0.4788,4323.1,4322.9,2.31321145]
[1756999035156,1.207,4323.0,4322.8,0.029]
[1756999035452,0.116,4322.9,4322.8,0.029]
[1756999035649,0.116,4322.9,4322.8,2.34231544]
[1756999035965,0.116,4322.9,4322.8,0.029]
[1756999036943,1.323,4322.9,4322.8,0.029]
[1756999037575,0.8868,4322.9,4322.8,0.029]
[1756999038646,1.323,4322.9,4322.8,0.029]
[1756999040374,0.8868,4322.9,4322.8,0.029]
[1756999040672,0.116,4322.9,4322.8,0.029]
[1756999041369,0.116,4322.9,4322.8,2.64151544]
[1756999041570,4.337,4323.2,4323.1,2.31315491]
[1756999041770,4.453,4323.2,4322.9,2.31326193]
[1756999042178,4.453,4323.2,4323.0,2.31319222]
[1756999042474,4.453,4323.2,4323.1,2.31315491]
[1756999043080,4.453,4323.2,4323.1,3.06295491]
[1756999043278,0.116,4323.2,4323.1,7.26295491]
[1756999043493,1.4532,4324.2,4324.1,2.31261996]
[1756999043646,1.4532,4324.2,4323.2,4.2]
[1756999043850,0.915,4324.1,4323.6,0.116]
[1756999044071,0.408,4323.7,4323.3,6.5130478]
[1756999044272,4.333,4323.6,4323.5,2.3129409]
[1756999044478,4.333,4323.6,4323.5,2.6121409]
[1756999046298,0.116,4323.9,4323.6,2.3128874]
[1756999046589,0.292,4323.6,4323.3,0.116]
[1756999046752,4.624,4323.6,4322.8,0.029]
[1756999046951,4.448,4323.6,4322.9,0.116]
[1756999047151,4.448,4323.6,4323.5,2.3129409]
[1756999047349,0.116,4323.8,4323.6,2.31284367]
[1756999047662,0.7708,4323.7,4323.2,0.116]
[1756999048002,0.7708,4323.7,4323.3,2.3130479]
[1756999048183,0.7708,4323.7,4323.5,2.31290785]
[1756999048383,0.7708,4323.7,4323.3,2.3130479]
[1756999048590,0.116,4323.8,4323.6,0.2992]
[1756999048774,0.0002,4324.2,4323.7,2.76343391]
[1756999049087,0.0002,4324.2,4324.1,2.61181996]
[1756999049289,0.0002,4324.2,4324.1,2.31261996]
[1756999051470,0.0002,4324.2,4324.1,3.07021996]
[1756999052466,0.0002,4324.2,4324.1,2.31261996]
[1756999052664,0.8003,4324.2,4323.7,2.31282184]
[1756999052993,5.2733,4324.1,4323.6,2.31287309]
[1756999053288,5.2733,4324.1,4323.4,2.31296702]
[1756999053289,0.3073,4323.7,4323.4,2.3129822]
[1756999053493,0.8001,4323.7,4323.4,2.3129822]
[1756999053697,4.328,4324.1,4323.6,0.3076]
[1756999053893,4.328,4324.1,4323.7,2.31282227]
[1756999054196,4.8208,4324.1,4323.7,2.31282227]
[1756999054391,0.4928,4324.0,4323.6,2.31288431]
[1756999054558,0.4928,4324.0,4323.7,2.31282683]
[1756999054764,4.328,4324.1,4323.7,2.31282683]
[1756999055166,4.328,4324.1,4324.0,2.31267345]
[1756999055499,0.0002,4324.2,4324.0,2.62027345]
[1756999055906,0.0002,4324.2,4324.1,2.31261996]
[1756999056070,0.0002,4324.2,4324.1,2.76261996]
[1756999056265,0.001,4324.7,4324.1,2.76261996]
[1756999056266,0.001,4324.7,4324.6,2.31235258]
[1756999056576,0.001,4324.7,4324.3,2.31248845]
[1756999056784,0.4938,4324.7,4324.1,2.31261262]
[1756999056991,0.4938,4324.7,4324.2,2.31256522]
[1756999057294,0.001,4324.7,4324.4,2.31241915]
[1756999057499,0.001,4324.7,4324.4,2.3124471]
[1756999057796,0.001,4324.7,4324.5,2.31240234]
[1756999057995,0.001,4324.7,4323.7,0.792]
[1756999058187,0.001,4324.7,4324.2,0.45]
[1756999058505,0.001,4324.7,4324.6,0.3076]
[1756999058700,0.001,4324.7,4324.0,4.325]
[1756999058869,0.001,4324.7,4323.9,2.76268915]
[1756999059197,0.001,4324.7,4324.2,2.31254963]
[1756999059568,0.001,4324.7,4323.9,0.792]
[1756999059773,0.001,4324.7,4324.4,2.31242617]
[1756999059976,0.001,4324.7,4323.9,0.45]
[1756999060303,0.4938,4324.7,4324.0,2.3126621]
[1756999060680,0.4938,4324.7,4324.1,2.3126193]
[1756999061077,0.4938,4324.7,4323.8,5.116]
[1756999061398,0.001,4324.7,4324.1,2.31261876]
[1756999061605,0.001,4324.7,4324.5,2.3123863]
[1756999061900,0.001,4324.7,4324.4,2.31245953]
[1756999062102,0.001,4324.7,4324.0,0.004]
[1756999062307,0.001,4324.7,4324.4,2.31244967]
[1756999062602,0.001,4324.7,4324.2,0.116]
[1756999063100,0.001,4324.7,4324.2,0.566]
[1756999063302,0.001,4324.7,4324.3,2.31247472]
[1756999063998,0.001,4324.7,4324.2,0.566]
[1756999064214,0.001,4324.7,4324.6,0.3076]
[1756999064574,0.001,4324.7,4324.6,2.61995258]
[1756999064776,0.001,4324.7,4324.5,2.31238947]
[1756999065004,0.001,4324.7,4324.4,2.42844372]
[1756999065301,0.001,4324.7,4324.5,2.31240155]
[1756999065708,0.001,4324.7,4324.4,2.42845862]
[1756999066011,0.001,4324.7,4324.5,2.31240114]
[1756999066379,0.001,4324.7,4324.4,2.42844662]
[1756999067008,0.001,4324.7,4324.4,2.42841924]
[1756999068201,0.001,4324.7,4324.4,0.116]
[1756999068512,0.001,4324.7,4324.4,2.31242397]
[1756999069307,0.4938,4324.7,4324.4,2.31242397]
[1756999069942,0.001,4324.7,4324.3,2.312513]
[1756999070221,0.001,4324.7,4324.4,2.31244452]
[1756999070532,0.001,4324.7,4324.4,2.31244812]
[1756999070812,0.001,4324.7,4324.3,2.31250148]
[1756999070987,0.001,4324.7,4324.4,2.31245937]
[1756999071187,0.001,4324.7,4324.3,2.3124981]
[1756999071409,0.4938,4324.7,4324.3,2.3124981]
[1756999071809,0.4938,4324.7,4324.4,2.31244859]
[1756999072112,0.4938,4324.7,4324.2,0.116]
[1756999072295,0.001,4324.7,4324.6,0.3076]
[1756999072493,0.001,4324.7,4324.2,0.116]
[1756999072790,0.001,4324.7,4324.3,2.31246862]
[1756999073100,0.4928,4324.6,4324.4,2.3124572]
[1756999073306,0.001,4324.7,4324.4,2.3124572]
[1756999073502,0.001,4324.7,4324.2,0.116]
[1756999073710,0.001,4324.7,4324.4,2.31244155]
[1756999073918,0.001,4325.1,4324.6,0.3076]
[1756999074099,0.116,4325.0,4324.7,2.31229911]
[1756999074295,0.116,4325.0,4324.9,0.3076]
[1756999074492,0.001,4325.1,4324.7,2.31229]
[1756999074697,0.001,4325.1,4324.6,2.3123374]
[1756999074962,0.9453,4325.0,4324.5,2.31239212]
[1756999075123,0.4928,4324.9,4324.5,2.31239212]
[1756999075531,0.001,4325.1,4324.5,2.31239212]
[1756999076327,0.3073,4324.6,4324.3,2.31247519]
[1756999076826,0.116,4324.8,4324.4,2.31245227]